[Event "Titled Tuesday Blitz June 14 Early 2022"]
[White "Bryakin, Mikhail"]
[Black "Zierk, Steven"]
[WhiteFideId "4165314"]
[BlackFideId "2034255"]
[WhiteElo "2417"]
[BlackElo "2494"]
[Result "0-1"]
[Round "04"]
[TimeControl "180+1"]
[Date "2022.06.14"]
[WhiteClock "0:00:13"]
[BlackClock "0:01:12"]

1. e4 {[%clk 0:02:53]}  e6 {[%clk 0:02:58]} 2. d4 {[%clk 0:02:42]}  d5 {[%clk 0:02:58]} 3. Nd2 {[%clk 0:02:40]}  c5 {[%clk 0:02:57]} 4. exd5 {[%clk 0:02:36]}  Qxd5 {[%clk 0:02:58]} 5. dxc5 {[%clk 0:02:32]}  Nf6 {[%clk 0:02:58]} 6. Ngf3 {[%clk 0:02:15]}  Qxc5 {[%clk 0:02:57]} 7. Nb3 {[%clk 0:02:13]}  Qc7 {[%clk 0:02:54]} 8. Be2 {[%clk 0:02:04]}  Be7 {[%clk 0:02:43]} 9. O-O {[%clk 0:02:04]}  O-O {[%clk 0:02:43]} 10. Bg5 {[%clk 0:02:03]}  Rd8 {[%clk 0:02:39]} 11. Qc1 {[%clk 0:02:03]}  Nc6 {[%clk 0:02:39]} 12. c3 {[%clk 0:02:03]}  b6 {[%clk 0:02:32]} 13. Nbd4 {[%clk 0:01:59]}  Nxd4 {[%clk 0:02:32]} 14. Nxd4 {[%clk 0:02:00]}  Bb7 {[%clk 0:02:20]} 15. Bf3 {[%clk 0:02:00]}  Bxf3 {[%clk 0:02:19]} 16. Nxf3 {[%clk 0:02:01]}  Rd5 {[%clk 0:02:17]} 17. Bxf6 {[%clk 0:01:53]}  Bxf6 {[%clk 0:02:17]} 18. Qc2 {[%clk 0:01:52]}  Rad8 {[%clk 0:02:15]} 19. Rad1 {[%clk 0:01:52]}  Qc4 {[%clk 0:02:14]} 20. Rxd5 {[%clk 0:01:51]}  Rxd5 {[%clk 0:02:15]} 21. a3 {[%clk 0:01:41]}  Qa2 {[%clk 0:02:05]} 22. Qb1 {[%clk 0:01:16]}  Qb3 {[%clk 0:02:03]} 23. Rc1 {[%clk 0:01:03]}  g6 {[%clk 0:01:55]} 24. h3 {[%clk 0:00:29]}  Rb5 {[%clk 0:01:55]} 25. c4 {[%clk 0:00:30]}  Rc5 {[%clk 0:01:47]} 26. Rc2 {[%clk 0:00:19]}  Rxc4 {[%clk 0:01:45]} 27. Rxc4 {[%clk 0:00:20]}  Qxc4 {[%clk 0:01:45]} 28. b3 {[%clk 0:00:19]}  Qc3 {[%clk 0:01:43]} 29. a4 {[%clk 0:00:19]}  Be7 {[%clk 0:01:42]} 30. Qd1 {[%clk 0:00:17]}  Bc5 {[%clk 0:01:40]} 31. Kf1 {[%clk 0:00:16]}  Qb2 {[%clk 0:01:36]} 32. Nd2 {[%clk 0:00:16]}  Qd4 {[%clk 0:01:35]} 33. Qe2 {[%clk 0:00:15]}  Qa1+ {[%clk 0:01:29]} 34. Qe1 {[%clk 0:00:13]}  Qxe1+ {[%clk 0:01:30]} 35. Kxe1 {[%clk 0:00:14]}  Bb4 {[%clk 0:01:30]} 36. Ke2 {[%clk 0:00:15]}  Bxd2 {[%clk 0:01:30]} 37. Kxd2 {[%clk 0:00:16]}  Kf8 {[%clk 0:01:31]} 38. Kd3 {[%clk 0:00:16]}  Ke7 {[%clk 0:01:31]} 39. Kc4 {[%clk 0:00:17]}  Kd6 {[%clk 0:01:26]} 40. Kb5 {[%clk 0:00:17]}  Kc7 {[%clk 0:01:26]} 41. Ka6 {[%clk 0:00:18]}  Kb8 {[%clk 0:01:26]} 42. g4 {[%clk 0:00:16]}  f5 {[%clk 0:01:24]} 43. gxf5 {[%clk 0:00:14]}  gxf5 {[%clk 0:01:19]} 44. f4 {[%clk 0:00:15]}  e5 {[%clk 0:01:14]} 45. fxe5 {[%clk 0:00:14]}  f4 {[%clk 0:01:14]} 46. e6 {[%clk 0:00:15]}  Kc7 {[%clk 0:01:14]} 47. Kxa7 {[%clk 0:00:12]}  f3 {[%clk 0:01:14]} 48. e7 {[%clk 0:00:12]}  Kd7 {[%clk 0:01:14]} 49. Kxb6 {[%clk 0:00:11]}  f2 {[%clk 0:01:14]} 50. a5 {[%clk 0:00:12]}  f1=Q {[%clk 0:01:14]} 51. a6 {[%clk 0:00:13]}  Qf6+ {[%clk 0:01:14]} 52. Ka7 {[%clk 0:00:12]}  Qxe7 {[%clk 0:01:12]} 53. b4 {[%clk 0:00:13]}  Qxb4 {[%clk 0:01:12]} 0-1


[Site "https://www.chess.com"]

[Event "Titled Tuesday Blitz June 14 Early 2022"]
[White "Grischuk, Alexander"]
[Black "Taboas Rodriguez, Daniel"]
[WhiteFideId "4126025"]
[BlackFideId "2208466"]
[WhiteElo "2762"]
[BlackElo "2429"]
[Result "1-0"]
[Round "04"]
[TimeControl "180+1"]
[Date "2022.06.14"]
[WhiteClock "0:00:50"]
[BlackClock "0:00:11"]

1. d4 {[%clk 0:03:00]}  Nf6 {[%clk 0:02:44]} 2. Nf3 {[%clk 0:03:01]}  g6 {[%clk 0:02:44]} 3. Bf4 {[%clk 0:03:01]}  Bg7 {[%clk 0:02:45]} 4. e3 {[%clk 0:03:01]}  O-O {[%clk 0:02:45]} 5. Be2 {[%clk 0:03:02]}  c5 {[%clk 0:02:45]} 6. O-O {[%clk 0:03:02]}  b6 {[%clk 0:02:46]} 7. d5 {[%clk 0:02:53]}  Bb7 {[%clk 0:02:43]} 8. c4 {[%clk 0:02:52]}  d6 {[%clk 0:02:43]} 9. Nc3 {[%clk 0:02:52]}  a6 {[%clk 0:02:34]} 10. a4 {[%clk 0:02:52]}  Nh5 {[%clk 0:02:28]} 11. Bg5 {[%clk 0:02:52]}  h6 {[%clk 0:02:28]} 12. Bh4 {[%clk 0:02:52]}  g5 {[%clk 0:02:26]} 13. Nd2 {[%clk 0:02:52]}  Nf6 {[%clk 0:02:18]} 14. Bg3 {[%clk 0:02:52]}  Nbd7 {[%clk 0:02:17]} 15. h3 {[%clk 0:02:33]}  Ne5 {[%clk 0:02:07]} 16. f4 {[%clk 0:02:32]}  Ng6 {[%clk 0:02:07]} 17. Bd3 {[%clk 0:02:17]}  Bc8 {[%clk 0:01:36]} 18. Bh2 {[%clk 0:02:03]}  e6 {[%clk 0:01:23]} 19. dxe6 {[%clk 0:02:01]}  Nh4 {[%clk 0:01:14]} 20. g3 {[%clk 0:01:43]}  Bxe6 {[%clk 0:01:13]} 21. gxh4 {[%clk 0:01:38]}  Bxh3 {[%clk 0:01:13]} 22. hxg5 {[%clk 0:01:38]}  hxg5 {[%clk 0:01:11]} 23. fxg5 {[%clk 0:01:32]}  Bxf1 {[%clk 0:01:07]} 24. Kxf1 {[%clk 0:01:16]}  Nd7 {[%clk 0:00:51]} 25. Qh5 {[%clk 0:01:15]}  f5 {[%clk 0:00:51]} 26. Nd5 {[%clk 0:01:10]}  Re8 {[%clk 0:00:32]} 27. Bxf5 {[%clk 0:01:06]}  Nf8 {[%clk 0:00:27]} 28. Bf4 {[%clk 0:00:59]}  b5 {[%clk 0:00:25]} 29. Ke2 {[%clk 0:00:54]}  bxc4 {[%clk 0:00:24]} 30. Nxc4 {[%clk 0:00:53]}  Rb8 {[%clk 0:00:22]} 31. Rg1 {[%clk 0:00:51]}  Rb3 {[%clk 0:00:11]} 32. Nf6+ {[%clk 0:00:50]} 1-0


[Site "https://www.chess.com"]

[Event "Titled Tuesday Blitz June 14 Early 2022"]
[White "Halkias, Stelios"]
[Black "Antipov, Mikhail Al."]
[WhiteFideId "4201809"]
[BlackFideId "4107012"]
[WhiteElo "2453"]
[BlackElo "2524"]
[Result "1-0"]
[Round "04"]
[TimeControl "180+1"]
[Date "2022.06.14"]
[WhiteClock "0:00:08"]
[BlackClock "0:00:02"]

1. Nf3 {[%clk 0:03:00]}  Nf6 {[%clk 0:02:59]} 2. d4 {[%clk 0:03:01]}  g6 {[%clk 0:02:59]} 3. g3 {[%clk 0:03:00]}  Bg7 {[%clk 0:02:59]} 4. Bg2 {[%clk 0:03:00]}  O-O {[%clk 0:02:59]} 5. O-O {[%clk 0:03:01]}  d6 {[%clk 0:02:57]} 6. Re1 {[%clk 0:03:01]}  Bf5 {[%clk 0:02:56]} 7. c4 {[%clk 0:02:58]}  c6 {[%clk 0:02:56]} 8. Nc3 {[%clk 0:02:58]}  Ne4 {[%clk 0:02:56]} 9. Qb3 {[%clk 0:02:58]}  Nxc3 {[%clk 0:02:52]} 10. bxc3 {[%clk 0:02:58]}  Bc8 {[%clk 0:02:49]} 11. e4 {[%clk 0:02:58]}  e5 {[%clk 0:02:49]} 12. Ba3 {[%clk 0:02:48]}  Re8 {[%clk 0:02:48]} 13. Rad1 {[%clk 0:02:45]}  Qc7 {[%clk 0:02:46]} 14. c5 {[%clk 0:02:39]}  dxc5 {[%clk 0:02:43]} 15. Bxc5 {[%clk 0:02:39]}  Be6 {[%clk 0:02:26]} 16. Qa3 {[%clk 0:02:35]}  exd4 {[%clk 0:02:13]} 17. cxd4 {[%clk 0:02:31]}  Nd7 {[%clk 0:02:10]} 18. Bd6 {[%clk 0:02:26]}  Qd8 {[%clk 0:02:10]} 19. d5 {[%clk 0:02:21]}  cxd5 {[%clk 0:02:09]} 20. exd5 {[%clk 0:02:21]}  Bg4 {[%clk 0:02:10]} 21. Rxe8+ {[%clk 0:02:13]}  Qxe8 {[%clk 0:02:11]} 22. Re1 {[%clk 0:02:13]}  Qd8 {[%clk 0:02:03]} 23. Be7 {[%clk 0:02:08]}  Qc7 {[%clk 0:01:53]} 24. d6 {[%clk 0:02:03]}  Qc3 {[%clk 0:01:53]} 25. Qxc3 {[%clk 0:02:00]}  Bxc3 {[%clk 0:01:54]} 26. Rc1 {[%clk 0:02:00]}  Bf6 {[%clk 0:01:50]} 27. Rc7 {[%clk 0:01:54]}  Bxe7 {[%clk 0:01:32]} 28. dxe7 {[%clk 0:01:52]}  Re8 {[%clk 0:01:32]} 29. h3 {[%clk 0:01:43]}  Bxf3 {[%clk 0:01:24]} 30. Bxf3 {[%clk 0:01:41]}  Rxe7 {[%clk 0:01:24]} 31. Rxb7 {[%clk 0:01:38]}  Re1+ {[%clk 0:01:10]} 32. Kg2 {[%clk 0:01:37]}  Ne5 {[%clk 0:01:11]} 33. Bd5 {[%clk 0:01:24]}  Rd1 {[%clk 0:01:04]} 34. Bb3 {[%clk 0:01:20]}  Rd7 {[%clk 0:01:03]} 35. Rxd7 {[%clk 0:01:09]}  Nxd7 {[%clk 0:01:04]} 36. Kf3 {[%clk 0:01:09]}  Kf8 {[%clk 0:00:55]} 37. Ke4 {[%clk 0:01:08]}  Ke7 {[%clk 0:00:46]} 38. Kd5 {[%clk 0:01:04]}  Nf6+ {[%clk 0:00:46]} 39. Kd4 {[%clk 0:00:52]}  g5 {[%clk 0:00:33]} 40. g4 {[%clk 0:00:34]}  h6 {[%clk 0:00:30]} 41. f3 {[%clk 0:00:27]}  Nd7 {[%clk 0:00:10]} 42. Kd5 {[%clk 0:00:26]}  f6 {[%clk 0:00:07]} 43. Ke4 {[%clk 0:00:14]}  Nc5+ {[%clk 0:00:02]} 44. Kd5 {[%clk 0:00:14]}  Nd3 {[%clk 0:00:02]} 45. Kc6 {[%clk 0:00:12]}  Ne5+ {[%clk 0:00:02]} 46. Kb7 {[%clk 0:00:13]}  Nxf3 {[%clk 0:00:03]} 47. Kxa7 {[%clk 0:00:12]}  Ng1 {[%clk 0:00:03]} 48. Kb7 {[%clk 0:00:12]}  Nxh3 {[%clk 0:00:04]} 49. a4 {[%clk 0:00:12]}  Nf2 {[%clk 0:00:04]} 50. a5 {[%clk 0:00:12]}  Nd3 {[%clk 0:00:05]} 51. Kb6 {[%clk 0:00:10]}  Kd6 {[%clk 0:00:02]} 52. a6 {[%clk 0:00:08]}  Ne5 {[%clk 0:00:01]} 53. a7 {[%clk 0:00:08]}  Nd7+ {[%clk 0:00:02]} 54. Kb5 {[%clk 0:00:08]} 1-0


[Site "https://www.chess.com"]

[Event "Titled Tuesday Blitz June 14 Early 2022"]
[White "Matlakov, Maxim"]
[Black "Djokic, Mihailo"]
[WhiteFideId "4168003"]
[BlackFideId "976440"]
[WhiteElo "2669"]
[BlackElo "2255"]
[Result "1-0"]
[Round "04"]
[TimeControl "180+1"]
[Date "2022.06.14"]
[WhiteClock "0:00:48"]
[BlackClock "0:00:43"]

1. d4 {[%clk 0:03:00]}  Nf6 {[%clk 0:02:58]} 2. Nc3 {[%clk 0:03:00]}  d5 {[%clk 0:02:58]} 3. Bf4 {[%clk 0:03:01]}  e6 {[%clk 0:02:44]} 4. e3 {[%clk 0:03:00]}  Bd6 {[%clk 0:02:43]} 5. Bg3 {[%clk 0:02:52]}  O-O {[%clk 0:02:42]} 6. Nf3 {[%clk 0:02:51]}  c5 {[%clk 0:02:42]} 7. dxc5 {[%clk 0:02:50]}  Bxc5 {[%clk 0:02:42]} 8. Bd3 {[%clk 0:02:50]}  Nc6 {[%clk 0:02:40]} 9. O-O {[%clk 0:02:50]}  d4 {[%clk 0:02:31]} 10. Na4 {[%clk 0:02:41]}  b6 {[%clk 0:02:25]} 11. exd4 {[%clk 0:02:20]}  Nxd4 {[%clk 0:02:24]} 12. Nxc5 {[%clk 0:02:17]}  bxc5 {[%clk 0:02:22]} 13. Ne5 {[%clk 0:02:17]}  Bb7 {[%clk 0:02:20]} 14. c3 {[%clk 0:02:13]}  Qd5 {[%clk 0:02:17]} 15. f3 {[%clk 0:02:13]}  Nf5 {[%clk 0:02:09]} 16. Qe2 {[%clk 0:02:10]}  Nxg3 {[%clk 0:02:08]} 17. hxg3 {[%clk 0:02:11]}  Qd6 {[%clk 0:02:01]} 18. Rad1 {[%clk 0:02:10]}  Qb6 {[%clk 0:01:57]} 19. Nc4 {[%clk 0:01:47]}  Qc7 {[%clk 0:01:57]} 20. Qe5 {[%clk 0:01:46]}  Qxe5 {[%clk 0:01:57]} 21. Nxe5 {[%clk 0:01:47]}  Rad8 {[%clk 0:01:56]} 22. Bc4 {[%clk 0:01:44]}  Bd5 {[%clk 0:01:53]} 23. Kf2 {[%clk 0:01:42]}  Rd6 {[%clk 0:01:47]} 24. Rd2 {[%clk 0:01:35]}  Rb8 {[%clk 0:01:45]} 25. Rfd1 {[%clk 0:01:33]}  Rdb6 {[%clk 0:01:42]} 26. b3 {[%clk 0:01:31]}  R6b7 {[%clk 0:01:37]} 27. g4 {[%clk 0:01:31]}  h6 {[%clk 0:01:36]} 28. Ba6 {[%clk 0:01:29]}  Rb6 {[%clk 0:01:32]} 29. Be2 {[%clk 0:01:29]}  Rf8 {[%clk 0:01:10]} 30. c4 {[%clk 0:01:27]}  Ba8 {[%clk 0:01:09]} 31. Rd8 {[%clk 0:01:26]}  Rb8 {[%clk 0:01:08]} 32. Rxf8+ {[%clk 0:01:16]}  Kxf8 {[%clk 0:01:02]} 33. Rd7 {[%clk 0:01:15]}  Nxd7 {[%clk 0:00:51]} 34. Nxd7+ {[%clk 0:01:16]}  Ke7 {[%clk 0:00:51]} 35. Nxb8 {[%clk 0:01:16]}  Kd6 {[%clk 0:00:52]} 36. b4 {[%clk 0:01:01]}  cxb4 {[%clk 0:00:52]} 37. Na6 {[%clk 0:01:01]}  Bb7 {[%clk 0:00:49]} 38. Nxb4 {[%clk 0:01:00]}  Kc5 {[%clk 0:00:49]} 39. Nd3+ {[%clk 0:00:54]}  Kd4 {[%clk 0:00:48]} 40. Ke1 {[%clk 0:00:47]}  Ke3 {[%clk 0:00:47]} 41. c5 {[%clk 0:00:47]}  a5 {[%clk 0:00:44]} 42. Ne5 {[%clk 0:00:47]}  f6 {[%clk 0:00:44]} 43. c6 {[%clk 0:00:47]}  Bc8 {[%clk 0:00:42]} 44. Nc4+ {[%clk 0:00:47]}  Kd4 {[%clk 0:00:43]} 45. Nd6 {[%clk 0:00:48]}  Kc5 {[%clk 0:00:43]} 46. Nxc8 {[%clk 0:00:48]} 1-0


[Site "https://www.chess.com"]

[Event "Titled Tuesday Blitz June 14 Early 2022"]
[White "Maximov, Dmitry"]
[Black "Kosakowski, Jakub"]
[WhiteFideId "14105659"]
[BlackFideId "1185080"]
[WhiteElo "2494"]
[BlackElo "2476"]
[Result "1-0"]
[Round "04"]
[TimeControl "180+1"]
[Date "2022.06.14"]
[WhiteClock "0:01:45"]
[BlackClock "0:02:12"]

1. e4 {[%clk 0:03:00]}  e5 {[%clk 0:02:59]} 2. Nf3 {[%clk 0:03:01]}  Nc6 {[%clk 0:02:59]} 3. Bb5 {[%clk 0:03:01]}  a6 {[%clk 0:03:00]} 4. Ba4 {[%clk 0:03:01]}  Nf6 {[%clk 0:03:00]} 5. O-O {[%clk 0:03:01]}  Nxe4 {[%clk 0:03:01]} 6. d4 {[%clk 0:03:01]}  b5 {[%clk 0:03:01]} 7. Bb3 {[%clk 0:03:01]}  d5 {[%clk 0:03:01]} 8. dxe5 {[%clk 0:03:02]}  Be6 {[%clk 0:03:02]} 9. Qe2 {[%clk 0:03:02]}  Be7 {[%clk 0:03:00]} 10. Rd1 {[%clk 0:03:02]}  O-O {[%clk 0:03:00]} 11. c4 {[%clk 0:03:01]}  bxc4 {[%clk 0:03:00]} 12. Bxc4 {[%clk 0:03:02]}  Bc5 {[%clk 0:03:00]} 13. Be3 {[%clk 0:02:58]}  Bxe3 {[%clk 0:02:59]} 14. Qxe3 {[%clk 0:02:58]}  Qb8 {[%clk 0:03:00]} 15. Bb3 {[%clk 0:02:44]}  Na5 {[%clk 0:03:00]} 16. Nbd2 {[%clk 0:02:40]}  Qa7 {[%clk 0:03:00]} 17. Nd4 {[%clk 0:02:16]}  Nxd2 {[%clk 0:02:35]} 18. Rxd2 {[%clk 0:02:16]}  c5 {[%clk 0:02:34]} 19. Nxe6 {[%clk 0:02:16]}  fxe6 {[%clk 0:02:34]} 20. Qh3 {[%clk 0:02:15]}  Qb6 {[%clk 0:02:31]} 21. Bc2 {[%clk 0:02:07]}  g6 {[%clk 0:02:28]} 22. b3 {[%clk 0:02:06]}  Rae8 {[%clk 0:02:23]} 23. Qg3 {[%clk 0:01:54]}  Nc6 {[%clk 0:02:19]} 24. Bxg6 {[%clk 0:01:47]}  Kh8 {[%clk 0:02:12]} 25. Bxe8 {[%clk 0:01:45]} 1-0


[Site "https://www.chess.com"]

[Event "Titled Tuesday Blitz June 14 Early 2022"]
[White "Morefield, Jason"]
[Black "Xiong, Jeffery"]
[WhiteFideId "30920825"]
[BlackFideId "2047640"]
[WhiteElo "2171"]
[BlackElo "2714"]
[Result "0-1"]
[Round "04"]
[TimeControl "180+1"]
[Date "2022.06.14"]
[WhiteClock "0:00:09"]
[BlackClock "0:01:18"]

1. d4 {[%clk 0:03:00]}  d5 {[%clk 0:02:57]} 2. c4 {[%clk 0:03:01]}  e6 {[%clk 0:02:58]} 3. Nf3 {[%clk 0:03:01]}  Nf6 {[%clk 0:02:56]} 4. Nc3 {[%clk 0:03:01]}  a6 {[%clk 0:02:55]} 5. c5 {[%clk 0:03:01]}  b6 {[%clk 0:02:54]} 6. cxb6 {[%clk 0:03:01]}  c5 {[%clk 0:02:55]} 7. Bf4 {[%clk 0:02:56]}  Qxb6 {[%clk 0:02:52]} 8. Na4 {[%clk 0:02:55]}  Qa7 {[%clk 0:02:35]} 9. Nxc5 {[%clk 0:02:42]}  Bxc5 {[%clk 0:02:26]} 10. dxc5 {[%clk 0:02:42]}  Qxc5 {[%clk 0:02:24]} 11. Rc1 {[%clk 0:02:37]}  Qa5+ {[%clk 0:02:24]} 12. Bd2 {[%clk 0:02:37]}  Qd8 {[%clk 0:02:24]} 13. Bb4 {[%clk 0:02:31]}  Bd7 {[%clk 0:02:20]} 14. e3 {[%clk 0:02:01]}  Nc6 {[%clk 0:02:20]} 15. Ba3 {[%clk 0:01:49]}  Ne4 {[%clk 0:01:58]} 16. Bd3 {[%clk 0:01:41]}  Qa5+ {[%clk 0:01:58]} 17. Kf1 {[%clk 0:01:17]}  f6 {[%clk 0:01:29]} 18. Nd4 {[%clk 0:01:02]}  Nxd4 {[%clk 0:01:28]} 19. exd4 {[%clk 0:01:03]}  Bb5 {[%clk 0:01:26]} 20. h4 {[%clk 0:00:32]}  Nd2+ {[%clk 0:01:22]} 21. Ke2 {[%clk 0:00:32]}  Bxd3+ {[%clk 0:01:20]} 22. Kxd3 {[%clk 0:00:32]}  Nc4 {[%clk 0:01:21]} 23. Qg4 {[%clk 0:00:09]}  Qd2# {[%clk 0:01:18]} 0-1


[Site "https://www.chess.com"]

[Event "Titled Tuesday Blitz June 14 Early 2022"]
[White "Niekras, Dawid"]
[Black "Andreikin, Dmitry"]
[WhiteFideId "1160451"]
[BlackFideId "4158814"]
[WhiteElo "2264"]
[BlackElo "2736"]
[Result "1/2-1/2"]
[Round "04"]
[TimeControl "180+1"]
[Date "2022.06.14"]
[WhiteClock "0:01:36"]
[BlackClock "0:01:19"]

1. e4 {[%clk 0:03:00]}  c5 {[%clk 0:02:58]} 2. Nf3 {[%clk 0:03:00]}  e6 {[%clk 0:02:58]} 3. d4 {[%clk 0:03:00]}  cxd4 {[%clk 0:02:59]} 4. Nxd4 {[%clk 0:03:01]}  Nc6 {[%clk 0:02:59]} 5. Nc3 {[%clk 0:03:00]}  a6 {[%clk 0:03:00]} 6. Nxc6 {[%clk 0:02:56]}  bxc6 {[%clk 0:03:01]} 7. e5 {[%clk 0:02:57]}  Qc7 {[%clk 0:02:59]} 8. f4 {[%clk 0:02:57]}  d5 {[%clk 0:02:57]} 9. exd6 {[%clk 0:02:58]}  Bxd6 {[%clk 0:02:57]} 10. Ne4 {[%clk 0:02:58]}  Be7 {[%clk 0:02:57]} 11. Bd3 {[%clk 0:02:56]}  Nf6 {[%clk 0:02:56]} 12. O-O {[%clk 0:02:49]}  O-O {[%clk 0:02:56]} 13. Qf3 {[%clk 0:02:49]}  Bb7 {[%clk 0:02:50]} 14. b3 {[%clk 0:02:48]}  c5 {[%clk 0:02:49]} 15. Bb2 {[%clk 0:02:47]}  c4 {[%clk 0:02:26]} 16. Nxf6+ {[%clk 0:01:59]}  Bxf6 {[%clk 0:02:21]} 17. Bxh7+ {[%clk 0:01:59]}  Kxh7 {[%clk 0:02:08]} 18. Qh5+ {[%clk 0:01:59]}  Kg8 {[%clk 0:02:08]} 19. Bxf6 {[%clk 0:01:59]}  gxf6 {[%clk 0:01:25]} 20. Qg4+ {[%clk 0:01:35]}  Kh7 {[%clk 0:01:25]} 21. Qh5+ {[%clk 0:01:34]}  Kg7 {[%clk 0:01:24]} 22. Qg4+ {[%clk 0:01:34]}  Kh6 {[%clk 0:01:23]} 23. Qh4+ {[%clk 0:01:34]}  Kg6 {[%clk 0:01:19]} 24. Qg4+ {[%clk 0:01:35]}  Kh6 {[%clk 0:01:18]} 25. Qh4+ {[%clk 0:01:35]}  Kg6 {[%clk 0:01:19]} 26. Qg4+ {[%clk 0:01:35]}  Kh7 {[%clk 0:01:18]} 27. Qh5+ {[%clk 0:01:35]}  Kg8 {[%clk 0:01:18]} 28. Qg4+ {[%clk 0:01:35]}  Kh8 {[%clk 0:01:18]} 29. Qh5+ {[%clk 0:01:36]}  Kg7 {[%clk 0:01:18]} 30. Qg4+ {[%clk 0:01:36]}  Kh6 {[%clk 0:01:19]} 1/2-1/2


[Site "https://www.chess.com"]

[Event "Titled Tuesday Blitz June 14 Early 2022"]
[White "Priasmoro, Novendra"]
[Black "Jobava, Baadur"]
[WhiteFideId "7105029"]
[BlackFideId "13601520"]
[WhiteElo "2309"]
[BlackElo "2617"]
[Result "0-1"]
[Round "04"]
[TimeControl "180+1"]
[Date "2022.06.14"]
[WhiteClock "0:00:01"]
[BlackClock "0:00:54"]

1. e4 {[%clk 0:02:54]}  e5 {[%clk 0:03:00]} 2. Nf3 {[%clk 0:02:54]}  Nf6 {[%clk 0:03:00]} 3. Nxe5 {[%clk 0:02:54]}  d6 {[%clk 0:03:01]} 4. Nf3 {[%clk 0:02:54]}  Nxe4 {[%clk 0:03:02]} 5. Qe2 {[%clk 0:02:49]}  Qe7 {[%clk 0:03:02]} 6. d3 {[%clk 0:02:48]}  Nf6 {[%clk 0:03:02]} 7. h3 {[%clk 0:02:48]}  Nbd7 {[%clk 0:03:00]} 8. Nc3 {[%clk 0:02:44]}  c6 {[%clk 0:02:59]} 9. Bf4 {[%clk 0:02:43]}  d5 {[%clk 0:02:58]} 10. d4 {[%clk 0:02:37]}  a5 {[%clk 0:02:48]} 11. Qxe7+ {[%clk 0:02:35]}  Bxe7 {[%clk 0:02:48]} 12. Bd3 {[%clk 0:02:36]}  a4 {[%clk 0:02:46]} 13. a3 {[%clk 0:02:36]}  O-O {[%clk 0:02:47]} 14. O-O {[%clk 0:02:35]}  Re8 {[%clk 0:02:44]} 15. Rfe1 {[%clk 0:02:35]}  Kf8 {[%clk 0:02:44]} 16. Re2 {[%clk 0:02:35]}  Nb6 {[%clk 0:02:43]} 17. Rae1 {[%clk 0:02:34]}  h6 {[%clk 0:02:33]} 18. Bc7 {[%clk 0:02:31]}  Nc4 {[%clk 0:02:30]} 19. Bxc4 {[%clk 0:02:29]}  dxc4 {[%clk 0:02:31]} 20. Rxe7 {[%clk 0:02:26]}  Rxe7 {[%clk 0:02:32]} 21. Bd6 {[%clk 0:02:27]}  Be6 {[%clk 0:02:32]} 22. Ne5 {[%clk 0:02:27]}  Rd8 {[%clk 0:02:24]} 23. Nxc4 {[%clk 0:02:21]}  Rxd6 {[%clk 0:02:22]} 24. Nxd6 {[%clk 0:02:22]}  Rd7 {[%clk 0:02:23]} 25. Nde4 {[%clk 0:02:17]}  Rxd4 {[%clk 0:02:22]} 26. Nxf6 {[%clk 0:02:18]}  gxf6 {[%clk 0:02:23]} 27. Re4 {[%clk 0:02:16]}  Rxe4 {[%clk 0:02:20]} 28. Nxe4 {[%clk 0:02:17]}  Bf5 {[%clk 0:02:21]} 29. Nc5 {[%clk 0:02:17]}  Bxc2 {[%clk 0:02:18]} 30. Nxb7 {[%clk 0:02:17]}  Ke7 {[%clk 0:02:19]} 31. Kf1 {[%clk 0:02:17]}  Ke6 {[%clk 0:02:19]} 32. Ke2 {[%clk 0:02:16]}  Kd5 {[%clk 0:02:20]} 33. Kd2 {[%clk 0:02:13]}  Be4 {[%clk 0:02:16]} 34. g3 {[%clk 0:02:14]}  Bf5 {[%clk 0:02:06]} 35. h4 {[%clk 0:02:14]}  Bd7 {[%clk 0:02:03]} 36. Kc3 {[%clk 0:02:08]}  c5 {[%clk 0:01:56]} 37. Na5 {[%clk 0:02:01]}  Bb5 {[%clk 0:01:55]} 38. b3 {[%clk 0:02:00]}  Ke4 {[%clk 0:01:53]} 39. bxa4 {[%clk 0:01:59]}  Bxa4 {[%clk 0:01:54]} 40. Nb7 {[%clk 0:01:59]}  Kd5 {[%clk 0:01:52]} 41. Na5 {[%clk 0:01:56]}  Ke4 {[%clk 0:01:49]} 42. Nb7 {[%clk 0:01:46]}  Kd5 {[%clk 0:01:49]} 43. Nd8 {[%clk 0:01:33]}  Be8 {[%clk 0:01:48]} 44. h5 {[%clk 0:01:29]}  f5 {[%clk 0:01:48]} 45. f3 {[%clk 0:01:25]}  f6 {[%clk 0:01:47]} 46. g4 {[%clk 0:01:25]}  fxg4 {[%clk 0:01:45]} 47. fxg4 {[%clk 0:01:26]}  Bd7 {[%clk 0:01:42]} 48. Nf7 {[%clk 0:01:25]}  Bxg4 {[%clk 0:01:43]} 49. Nxh6 {[%clk 0:01:25]}  Bxh5 {[%clk 0:01:43]} 50. a4 {[%clk 0:01:24]}  Be2 {[%clk 0:01:37]} 51. a5 {[%clk 0:01:24]}  Ke6 {[%clk 0:01:30]} 52. Kd2 {[%clk 0:01:20]}  Ba6 {[%clk 0:01:29]} 53. Ke3 {[%clk 0:01:17]}  Bb7 {[%clk 0:01:09]} 54. Ng4 {[%clk 0:01:10]}  f5 {[%clk 0:01:09]} 55. Nf2 {[%clk 0:01:11]}  Ba6 {[%clk 0:01:08]} 56. Kf4 {[%clk 0:01:11]}  Bc8 {[%clk 0:01:04]} 57. Nd1 {[%clk 0:01:03]}  Kd5 {[%clk 0:01:03]} 58. Ne3+ {[%clk 0:01:01]}  Kc6 {[%clk 0:01:04]} 59. Ke5 {[%clk 0:00:16]}  Kb5 {[%clk 0:01:03]} 60. Kd5 {[%clk 0:00:16]}  f4 {[%clk 0:01:02]} 61. Nd1 {[%clk 0:00:17]}  f3 {[%clk 0:01:01]} 62. Nc3+ {[%clk 0:00:06]}  Kxa5 {[%clk 0:01:00]} 63. Nd1 {[%clk 0:00:01]}  Kb4 {[%clk 0:01:00]} 64. Ke4 {[%clk 0:00:01]}  Bb7+ {[%clk 0:00:58]} 65. Kd3 {[%clk 0:00:01]}  c4+ {[%clk 0:00:59]} 66. Kd4 {[%clk 0:00:01]}  Kb3 {[%clk 0:00:59]} 67. Ke3 {[%clk 0:00:01]}  c3 {[%clk 0:00:59]} 68. Nf2 {[%clk 0:00:01]}  Ba6 {[%clk 0:00:55]} 69. Ne4 {[%clk 0:00:01]}  c2 {[%clk 0:00:55]} 70. Nc5+ {[%clk 0:00:01]}  Kc4 {[%clk 0:00:54]} 0-1


[Site "https://www.chess.com"]